bitfinex/quotes_SOLUSD_20241028
["timestamp","ask_amount","ask_price","bid_price","bid_amount"]
[1730095893356,9.09827547,173.82,173.77,14.85297547]
[1730095893867,9.09827547,173.81,173.77,5.7547]
[1730095894370,9.09827547,173.82,173.77,5.7547]
[1730095894663,0.12549,173.84,173.78,9.09827547]
[1730095894846,9.22376547,173.84,173.78,9.09827547]
[1730095895565,14.97616547,173.84,173.79,5.754]
[1730095895767,20.0,173.9,173.79,14.85227547]
[1730095895966,9.09827547,173.85,173.8,9.09827547]
[1730095896160,9.09827547,173.85,173.79,14.85227547]
[1730095897050,9.09827547,173.85,173.79,9.09827547]
[1730095897455,9.09827547,173.85,173.8,9.09827547]
[1730095899171,9.09827547,173.85,173.81,5.7534]
[1730095902883,0.12549,173.85,173.81,5.7534]
[1730095903055,9.22376547,173.85,173.81,5.7534]
[1730095903762,9.09827547,173.83,173.78,9.09827547]
[1730095903969,32.87515947,173.82,173.77,5.7547]
[1730095904151,0.12549,173.81,173.77,14.85297547]
[1730095905257,5.87909,173.81,173.77,14.85297547]
[1730095905461,0.12549,173.81,173.77,14.85297547]
[1730095908275,14.85107547,173.83,173.78,9.09827547]
[1730095908452,0.12549,173.82,173.78,9.09827547]
[1730095908778,0.12549,173.82,173.77,5.7547]
[1730095908981,0.12549,173.82,173.78,9.09827547]
[1730095909357,0.12549,173.82,173.77,14.85297547]
[1730095909576,0.12549,173.82,173.77,5.7547]
[1730095909759,9.09827547,173.81,173.77,5.7547]
[1730095910153,9.09827547,173.81,173.72,15.0152]
[1730095910154,9.09827547,173.79,173.73,14.85427547]
[1730095910662,5.87879,173.82,173.73,14.85427547]
[1730095910663,9.09827547,173.8,173.74,9.09827547]
[1730095910862,0.12549,173.79,173.74,9.09827547]
[1730095911256,0.12549,173.79,173.72,21.3954]
[1730095911257,0.12549,173.79,173.75,9.09827547]
[1730095912073,0.12549,173.8,173.75,9.09827547]
[1730095912281,9.22376547,173.81,173.76,9.09827547]
[1730095912660,9.22376547,173.81,173.75,9.09827547]
[1730095912854,9.09827547,173.8,173.74,5.7557]
[1730095913182,9.09827547,173.8,173.75,9.09827547]
[1730095913373,9.09827547,173.8,173.74,9.09827547]
[1730095913973,9.09827547,173.78,173.72,15.0152]
[1730095914175,0.12549,173.78,173.7,5.757]
[1730095914379,9.09827547,173.73,173.7,5.757]
[1730095914878,9.09827547,173.74,173.7,5.757]
[1730095915261,9.09827547,173.74,173.68,9.09827547]
[1730095915455,9.09827547,173.74,173.69,5.7573]
[1730095915677,9.09827547,173.73,173.67,31.54706067]
[1730095915861,5.7559,173.74,173.68,9.09827547]
[1730095915862,9.09827547,173.74,173.68,9.09827547]
[1730095916973,9.09827547,173.7,173.67,0.5859852]
[1730095917167,9.09827547,173.7,173.67,6.3438852]
[1730095917379,9.09827547,173.71,173.67,6.3438852]
[1730095917866,84.487,173.77,173.67,0.5859852]
[1730095917867,0.12549,173.77,173.67,0.5859852]
[1730095918074,0.12549,173.73,173.68,9.09827547]
[1730095918958,9.09827547,173.74,173.69,5.7573]
[1730095919162,9.09827547,173.73,173.69,5.7573]
[1730095919875,0.12549,173.69,173.67,0.5859852]
[1730095920181,9.09827547,173.71,173.67,0.5859852]
[1730095920362,0.12549,173.7,173.67,0.5859852]
[1730095920560,0.12549,173.7,173.67,6.3439852]
[1730095921157,33.00064947,173.71,173.67,0.5859852]
[1730095921571,9.22376547,173.71,173.67,6.3438852]
[1730095921776,0.12549,173.71,173.67,6.3438852]
[1730095922079,23.902374,173.73,173.68,9.09827547]
[1730095922283,20.12549,173.72,173.67,0.5859852]
[1730095922462,20.12549,173.72,173.67,6.3439852]
[1730095922463,9.22376547,173.72,173.67,6.3439852]
[1730095922663,23.902374,173.71,173.67,6.3439852]
[1730095923485,33.00064947,173.71,173.67,6.3439852]
[1730095924178,38.75744947,173.71,173.67,0.5859852]
[1730095925888,0.12549,173.71,173.67,6.3436852]
[1730095926064,23.902374,173.72,173.67,15.44196067]
[1730095927184,23.902374,173.72,173.67,9.68426067]
[1730095928574,5.7553,173.75,173.68,9.09827547]
[1730095928770,5.7553,173.75,173.67,0.5859852]
[1730095928771,23.902374,173.74,173.69,9.09827547]
[1730095929389,24.027864,173.75,173.69,9.09827547]
[1730095929590,24.027864,173.75,173.7,9.09827547]
[1730095929782,29.783464,173.75,173.7,9.09827547]
[1730095929984,38.88173947,173.75,173.69,9.09827547]
[1730095930667,29.783464,173.75,173.7,9.09827547]
[1730095930863,9.09827547,173.78,173.72,9.09827547]
[1730095931070,9.09827547,173.79,173.73,9.09827547]
[1730095931680,9.09827547,173.78,173.72,9.09827547]
[1730095932872,0.12549,173.76,173.73,5.756]
[1730095933392,9.09827547,173.78,173.73,5.756]
[1730095933586,0.12549,173.77,173.73,5.756]
[1730095934893,0.12549,173.77,173.73,9.09827547]
[1730095935685,23.902374,173.78,173.73,9.09827547]
[1730095937396,23.902374,173.78,173.73,14.85397547]
[1730095939776,76.298,173.84,173.67,0.5859852]
[1730095939777,5.752,173.86,173.77,9.09827547]
[1730095940090,5.7517,173.86,173.81,9.09827547]
[1730095940296,14.84997547,173.86,173.79,9.09827547]
[1730095940496,9.09827547,173.85,173.79,9.09827547]
[1730095941191,23.902374,173.84,173.79,14.85207547]
[1730095941780,23.902374,173.84,173.8,9.09827547]
[1730095941982,23.902374,173.84,173.81,9.09827547]
[1730095942398,0.12549,173.84,173.81,9.09827547]
[1730095942898,14.84967547,173.87,173.81,9.09827547]
[1730095943192,14.84967547,173.87,173.82,5.753]
[1730095944393,23.902374,173.86,173.82,5.753]
[1730095944903,0.12549,173.84,173.8,9.09827547]
[1730095945077,20.99491073,173.91,173.81,9.09827547]
[1730095945277,9.09827547,173.87,173.81,9.09827547]
[1730095946196,14.84987547,173.87,173.82,5.753]
[1730095946690,0.12549,173.86,173.82,5.753]
[1730095947405,0.12549,173.86,173.81,9.09827547]
[1730095947708,0.12549,173.86,173.82,9.09827547]
[1730095947890,0.12549,173.86,173.81,9.09827547]
[1730095948600,38.87803947,173.86,173.74,27.6135]
[1730095948787,9.09827547,173.84,173.79,9.09827547]
[1730095949401,9.09827547,173.84,173.79,14.85207547]
[1730095949698,14.85077547,173.84,173.79,14.85207547]
[1730095950174,0.12549,173.83,173.79,5.7538]
[1730095950375,9.22376547,173.83,173.79,5.7538]
[1730095950616,23.902374,173.81,173.75,5.7553]
[1730095950903,9.09827547,173.8,173.75,5.7553]
[1730095951283,0.12549,173.79,173.75,5.7553]
[1730095951996,0.12549,173.79,173.75,14.85357547]
[1730095952777,0.12549,173.79,173.76,9.09827547]
[1730095952981,0.12549,173.79,173.76,14.85327547]
[1730095953405,0.12549,173.79,173.76,5.755]
[1730095954309,0.12549,173.79,173.75,9.09827547]
[1730095954505,0.12549,173.79,173.75,14.85357547]
[1730095954800,0.12549,173.8,173.77,9.09827547]
[1730095955699,0.12549,173.8,173.77,14.85297547]
[1730095956604,0.12549,173.8,173.75,5.7553]
[1730095956819,0.12549,173.8,173.76,9.09827547]
[1730095957495,0.12549,173.8,173.77,9.09827547]
[1730095957686,0.12549,173.81,173.78,5.7544]
[1730095958608,23.902374,173.82,173.78,5.7544]
[1730095960006,29.655474,173.82,173.78,5.7544]
[1730095960998,25.7514,173.87,173.78,14.85267547]
[1730095961205,9.09827547,173.86,173.8,9.09827547]
[1730095961798,9.09827547,173.85,173.79,9.09827547]
[1730095962192,0.12549,173.84,173.8,5.7537]
[1730095962803,23.776884,173.85,173.81,9.09827547]
[1730095962998,9.09827547,173.89,173.83,9.09827547]
[1730095963208,14.84867547,173.9,173.84,9.09827547]
[1730095963913,14.84867547,173.9,173.85,9.09827547]
[1730095964811,5.7504,173.9,173.85,9.09827547]
[1730095965116,5.7501,173.91,173.86,9.09827547]
[1730095966199,14.84837547,173.91,173.85,9.09827547]
[1730095966401,0.12549,173.88,173.83,9.09827547]
[1730095966816,9.22376547,173.88,173.82,9.09827547]
[1730095967003,5.7501,173.91,173.81,22.2782]
[1730095967004,0.12549,173.86,173.81,31.37647547]
[1730095967943,0.12549,173.86,173.82,9.09827547]
[1730095968519,5.87729,173.86,173.81,28.0313]
[1730095968721,5.87729,173.86,173.81,37.12957547]
[1730095969817,5.87729,173.86,173.82,9.09827547]
[1730095971895,5.87729,173.86,173.82,14.85117547]
[1730095974727,14.3752,173.91,173.83,9.09827547]
[1730095974921,24.027864,173.9,173.85,9.09827547]
[1730095975433,32.87515947,173.9,173.85,9.09827547]
[1730095975999,5.7507,173.89,173.84,9.09827547]
[1730095976723,0.12549,173.88,173.84,9.09827547]
[1730095977104,5.87659,173.88,173.84,9.09827547]
[1730095977299,5.87659,173.88,173.83,9.09827547]
[1730095980719,0.12549,173.89,173.86,9.09827547]
[1730095981298,0.12549,173.89,173.85,9.09827547]
[1730095982221,5.87629,173.89,173.86,9.09827547]
[1730095982730,5.87629,173.89,173.84,9.09827547]
[1730095983223,5.87629,173.89,173.85,9.09827547]
[1730095985197,5.87629,173.89,173.84,9.09827547]
[1730095990136,14.3732,173.94,173.85,9.09827547]
[1730095990344,9.09827547,173.91,173.85,9.09827547]
[1730095990627,5.87489,173.93,173.85,9.09827547]
[1730095990628,9.09827547,173.9,173.85,9.09827547]
[1730095991217,14.84887547,173.9,173.85,9.09827547]
[1730095994927,14.84887547,173.9,173.84,9.09827547]
[1730095998241,5.7506,173.9,173.86,9.09827547]
[1730095998543,29.525584,173.95,173.89,9.09827547]
[1730095998720,14.84697547,173.95,173.9,9.09827547]
[1730095999141,14.84697547,173.95,173.89,9.09827547]
[1730095999922,0.12549,173.94,173.89,9.09827547]
[1730096000127,23.902374,173.94,173.89,9.09827547]
[1730096000431,14.84697547,173.95,173.89,9.09827547]
[1730096001443,0.12549,173.94,173.9,9.09827547]
[1730096001747,5.7487,173.95,173.91,9.09827547]
[1730096001949,0.12549,173.94,173.91,9.09827547]
[1730096003129,9.09827547,173.93,173.87,22.8596]
[1730096003328,9.09827547,173.9,173.83,15.6977]
[1730096003554,9.07344547,173.89,173.83,24.79597547]
[1730096004229,9.09827547,173.88,173.83,24.79597547]
[1730096005735,9.09827547,173.88,173.83,15.6977]
[1730096005929,9.09827547,173.88,173.83,24.79597547]
[1730096006136,9.09827547,173.89,173.84,9.09827547]
[1730096006334,9.09827547,173.9,173.84,9.09827547]
[1730096006556,9.09827547,173.92,173.86,9.09827547]
[1730096006851,9.09827547,173.93,173.88,9.09827547]
[1730096007055,29.651474,173.94,173.83,15.6977]
[1730096007056,9.09827547,173.92,173.86,9.09827547]
[1730096007235,29.651474,173.94,173.86,9.09827547]
[1730096007236,9.09827547,173.91,173.86,9.09827547]
[1730096008750,9.09827547,173.91,173.83,15.6977]
[1730096009051,9.09827547,173.86,173.83,15.6977]
[1730096009349,9.09827547,173.84,173.79,24.48487547]
[1730096010239,9.09827547,173.83,173.79,15.3866]
[1730096010452,9.09827547,173.84,173.79,15.3866]
[1730096013346,9.09827547,173.82,173.79,15.3866]
[1730096013561,9.09827547,173.8,173.77,5.95941823]
[1730096013852,9.09827547,173.78,173.7,10.33991694]
[1730096014062,9.09827547,173.78,173.72,15.05973225]
[1730096014248,9.09827547,173.78,173.72,9.09827547]
[1730096014952,9.09827547,173.77,173.72,9.09827547]
[1730096015257,9.09827547,173.77,173.71,9.09827547]
[1730096016832,9.09827547,173.75,173.7,16.09691694]
[1730096017561,9.09827547,173.76,173.7,25.19519241]
[1730096017763,9.09827547,173.75,173.7,25.19519241]
[1730096018861,9.09827547,173.73,173.7,10.33991694]
[1730096019947,9.09827547,173.72,173.7,10.33991694]
[1730096020243,14.85457547,173.72,173.7,10.33991694]
[1730096021754,9.22376547,173.71,173.7,10.33991694]
[1730096023350,33.00064947,173.71,173.7,10.33991694]
[1730096024349,38.75734947,173.71,173.7,10.33991694]
[1730096033169,14.98046547,173.71,173.7,10.33991694]
[1730096042275,5.7567,173.71,173.7,10.33991694]
[1730096042472,14.85497547,173.71,173.7,10.33991694]
[1730096042679,5.7567,173.71,173.7,10.33991694]
[1730096042857,5.755,173.76,173.7,16.09681694]
[1730096043054,9.09827547,173.75,173.7,16.09681694]
[1730096043453,5.755,173.76,173.7,10.33991694]
[1730096043653,9.09827547,173.74,173.7,10.33991694]
[1730096044859,14.85417547,173.74,173.7,10.33991694]
[1730096046370,9.09827547,173.71,173.7,10.33991694]
[1730096048680,14.85497547,173.71,173.7,10.33991694]
[1730096054883,14.3884,173.76,173.7,10.33991694]
[1730096055082,9.09827547,173.73,173.7,10.33991694]
[1730096055378,9.09827547,173.71,173.7,10.33991694]
[1730096055883,5.7553,173.75,173.7,10.33991694]
[1730096056384,9.09827547,173.72,173.7,10.33991694]
[1730096057779,14.85477547,173.72,173.7,10.33991694]
[1730096062565,9.09827547,173.71,173.7,10.33991694]
[1730096063981,14.85497547,173.71,173.7,10.33991694]
[1730096064184,5.7567,173.71,173.7,10.33991694]
[1730096065089,5.7557,173.74,173.7,10.33991694]
[1730096065297,9.09827547,173.73,173.7,10.33991694]
[1730096066372,5.7563,173.72,173.7,10.33991694]
[1730096068696,14.85457547,173.72,173.7,10.33991694]
[1730096069812,9.09827547,173.76,173.7,19.43819241]
[1730096070209,9.09827547,173.76,173.7,9.09827547]
[1730096070520,14.85357547,173.75,173.69,14.85557547]
[1730096070702,14.85357547,173.75,173.7,9.09827547]
[1730096071211,14.85357547,173.75,173.69,14.85557547]
[1730096072092,14.85357547,173.75,173.69,9.09827547]
[1730096075093,14.85357547,173.75,173.69,14.85557547]
[1730096075305,14.85357547,173.75,173.7,9.09827547]
[1730096075506,5.7553,173.75,173.7,9.09827547]
[1730096080420,5.7553,173.75,173.69,9.09827547]
[1730096080421,14.85357547,173.75,173.69,9.09827547]
[1730096085124,14.85357547,173.75,173.69,14.85547547]
[1730096085629,14.85357547,173.75,173.7,9.09827547]
[1730096089535,10.0907,173.81,173.73,9.09827547]
[1730096089827,5.7537,173.8,173.76,9.09827547]
[1730096090606,5.7537,173.8,173.77,9.09827547]
[1730096091124,9.09827547,173.82,173.77,9.09827547]
[1730096091333,5.7534,173.81,173.77,9.09827547]
[1730096094732,9.09827547,173.78,173.72,16.2249]
[1730096094935,9.09827547,173.78,173.72,21.9812]
[1730096095122,9.09827547,173.78,173.72,31.07947547]
[1730096095635,9.09827547,173.78,173.73,9.09827547]
[1730096096133,9.09827547,173.78,173.74,5.7557]
[1730096098228,14.85277547,173.78,173.73,5.756]
[1730096098434,14.85277547,173.78,173.72,21.9812]
[1730096098435,9.09827547,173.76,173.72,21.9812]
[1730096099939,9.09827547,173.76,173.73,5.756]
[1730096100436,9.09827547,173.77,173.73,5.756]
[1730096101737,14.85277547,173.78,173.73,5.756]
[1730096102810,9.09827547,173.75,173.7,9.09827547]
[1730096103017,9.09827547,173.75,173.69,9.09827547]
[1730096104940,9.09827547,173.75,173.7,9.09827547]
[1730096105645,14.85357547,173.76,173.7,9.09827547]
[1730096105936,23.902374,173.81,173.68,22.1785]
[1730096105937,14.97746547,173.8,173.74,14.85397547]
[1730096106144,9.09827547,173.81,173.75,9.09827547]
[1730096106328,9.09827547,173.81,173.76,9.09827547]
[1730096106732,9.09827547,173.81,173.75,9.09827547]
[1730096107538,14.85177547,173.81,173.76,5.755]
[1730096108146,9.09827547,173.8,173.76,5.755]
[1730096108535,9.09827547,173.8,173.74,9.09827547]
[1730096109031,9.09827547,173.8,173.71,5.7567]
[1730096109032,14.85177547,173.81,173.75,9.09827547]
[1730096109542,14.85177547,173.81,173.76,5.755]
[1730096110122,9.09827547,173.8,173.76,5.755]
[1730096110651,14.85197547,173.8,173.75,5.7553]
[1730096113736,14.85197547,173.8,173.7,5.757]
[1730096113933,9.22376547,173.77,173.68,16.4208]
[1730096114143,9.09827547,173.72,173.68,16.4208]
[1730096116046,14.85467547,173.72,173.68,16.4208]
[1730096117769,9.09827547,173.7,173.67,0.5859852]
[1730096118269,33.00064947,173.71,173.67,0.5859852]
[1730096118448,9.09827547,173.71,173.67,6.3438852]
[1730096118969,9.09827547,173.72,173.67,6.3438852]
[1730096119279,9.09827547,173.71,173.67,6.3438852]
[1730096121676,9.09827547,173.71,173.67,0.5859852]
[1730096121879,23.776884,173.77,173.68,9.09827547]
[1730096122078,9.09827547,173.74,173.68,9.09827547]
[1730096122373,9.09827547,173.74,173.67,0.5859852]
[1730096122374,9.09827547,173.74,173.69,9.09827547]
[1730096122588,5.7541,173.79,173.71,9.09827547]
[1730096122752,9.09827547,173.77,173.71,9.09827547]
[1730096122952,9.09827547,173.78,173.72,9.09827547]
[1730096123148,9.09827547,173.78,173.73,9.09827547]
[1730096123469,9.09827547,173.78,173.72,9.09827547]
[1730096123674,9.09827547,173.79,173.74,9.09827547]
[1730096123855,9.09827547,173.8,173.74,9.09827547]
[1730096124056,9.09827547,173.8,173.75,9.09827547]
[1730096124251,16.5773,173.84,173.75,9.09827547]
[1730096124558,70.0,173.86,173.77,9.09827547]
[1730096124754,0.99996519,173.87,173.77,9.09827547]
[1730096124960,9.09827547,173.83,173.78,9.09827547]
[1730096125362,5.7514,173.87,173.79,9.09827547]
[1730096125559,9.09827547,173.84,173.79,9.09827547]
[1730096125781,9.09827547,173.84,173.8,5.7537]
[1730096126775,0.12549,173.83,173.8,5.7537]
[1730096126981,0.12549,173.83,173.78,9.09827547]
[1730096127184,9.22376547,173.83,173.79,5.754]
[1730096127558,9.09827547,173.81,173.72,5.7563]
[1730096127757,5.87839,173.83,173.75,9.09827547]
[1730096127758,9.09827547,173.8,173.75,9.09827547]
[1730096128683,9.09827547,173.8,173.76,5.755]
[1730096129379,9.09827547,173.78,173.72,5.7563]
[1730096129595,9.09827547,173.78,173.72,14.85457547]
[1730096130383,9.09827547,173.78,173.73,9.09827547]
[1730096131084,8.78913179,173.78,173.73,9.09827547]
[1730096131386,0.12549,173.76,173.71,27.1992]
[1730096131586,9.09827547,173.75,173.71,21.1754]
[1730096132765,9.22376547,173.76,173.71,21.1754]
[1730096133387,14.97886547,173.76,173.71,21.1754]
[1730096133597,14.97886547,173.76,173.71,21.1755]
[1730096133886,9.22376547,173.76,173.71,21.1755]
[1730096134287,49.656074,173.8,173.71,30.27377547]
[1730096134466,9.09827547,173.77,173.71,30.27377547]
[1730096136799,9.09827547,173.78,173.72,9.09827547]
[1730096136962,32.87515947,173.8,173.74,9.09827547]
[1730096137289,0.12549,173.79,173.75,5.7553]
[1730096137488,9.09827547,173.8,173.75,5.7553]
[1730096138779,0.12549,173.79,173.75,5.7553]
[1730096139581,9.09827547,173.8,173.75,5.7553]
[1730096139582,9.09827547,173.78,173.75,5.7553]
[1730096139778,9.09827547,173.76,173.71,15.4188]
[1730096140493,9.09827547,173.77,173.71,24.51707547]
[1730096140793,9.22376547,173.76,173.71,15.4188]
[1730096141172,9.09827547,173.75,173.71,15.4188]
[1730096141372,9.22376547,173.76,173.71,15.4188]
[1730096141777,9.22376547,173.76,173.71,21.1755]
[1730096142083,9.22376547,173.76,173.71,30.27377547]
[1730096142592,23.776884,173.8,173.72,9.09827547]
[1730096142794,9.09827547,173.79,173.73,9.09827547]
[1730096142985,0.12549,173.78,173.73,9.09827547]
[1730096144189,0.12549,173.78,173.73,14.85417547]
[1730096144870,9.09827547,173.79,173.74,9.09827547]
[1730096145294,9.09827547,173.8,173.74,9.09827547]
[1730096145510,9.22376547,173.8,173.74,9.09827547]
[1730096145894,9.22376547,173.8,173.75,5.7553]
[1730096146088,9.22376547,173.8,173.75,35.7553]
[1730096147000,9.22376547,173.8,173.75,5.7553]
[1730096149586,9.09827547,173.78,173.75,5.7553]
[1730096149885,9.09827547,173.78,173.75,35.7553]
[1730096150691,9.09827547,173.78,173.75,5.7553]
[1730096151807,9.09827547,173.78,173.73,9.09827547]
[1730096153303,9.09827547,173.78,173.72,9.09827547]
[1730096154279,9.09827547,173.78,173.73,9.09827547]
[1730096155402,9.09827547,173.78,173.74,5.7557]
[1730096156188,9.09827547,173.79,173.74,5.7557]
[1730096156508,8.59827547,173.79,173.74,5.7557]
[1730096156806,8.59827547,173.79,173.73,9.09827547]
[1730096159709,8.59827547,173.79,173.74,5.7557]
[1730096160106,9.09827547,173.77,173.74,5.7557]
[1730096160596,5.87919,173.8,173.71,24.51707547]
[1730096160597,9.09827547,173.76,173.71,24.51707547]
[1730096160798,9.09827547,173.75,173.72,5.7561]
[1730096161003,5.87919,173.8,173.71,15.4188]
[1730096161004,9.09827547,173.74,173.71,21.1754]
[1730096161206,9.09827547,173.75,173.71,21.1754]
[1730096162697,9.09827547,173.73,173.68,5.7577]
[1730096163143,9.09827547,173.72,173.68,5.7577]
[1730096163495,9.09827547,173.73,173.68,5.7577]
[1730096167393,9.09827547,173.74,173.68,14.85597547]
[1730096169016,9.09827547,173.74,173.69,9.09827547]
[1730096169220,0.12549,173.74,173.69,9.09827547]
[1730096171330,0.12549,173.74,173.7,5.757]
[1730096171496,0.12549,173.75,173.71,9.09827547]
[1730096171692,9.22376547,173.77,173.71,9.09827547]
[1730096171900,23.902374,173.76,173.71,9.09827547]
[1730096172806,0.12549,173.8,173.72,14.85457547]
[1730096173005,9.09827547,173.78,173.73,9.09827547]
[1730096173221,9.09827547,173.79,173.73,9.09827547]
[1730096173519,5.7534,173.81,173.74,9.09827547]
[1730096173694,9.09827547,173.8,173.74,9.09827547]
[1730096173901,9.09827547,173.8,173.74,24.10867547]
[1730096174311,9.09827547,173.8,173.75,14.85357547]
[1730096174705,23.902374,173.8,173.75,14.85357547]
[1730096174926,33.00064947,173.8,173.75,14.85357547]
[1730096175111,33.00064947,173.8,173.75,5.7553]
[1730096175522,38.75434947,173.8,173.75,5.7553]
[1730096178633,38.75434947,173.8,173.75,14.85357547]
[1730096180824,38.75434947,173.8,173.75,5.7553]
[1730096181907,29.656074,173.8,173.75,5.7553]
[1730096182114,38.75434947,173.8,173.75,14.85357547]
[1730096184834,9.09827547,173.84,173.78,9.09827547]
[1730096185010,9.09827547,173.85,173.79,9.09827547]
[1730096186022,14.85037547,173.85,173.8,5.7537]
[1730096186219,5.7507,173.89,173.81,9.09827547]
[1730096186427,9.09827547,173.87,173.81,9.09827547]
[1730096187222,14.84997547,173.87,173.81,14.85137547]
[1730096187523,23.902374,173.86,173.81,14.85137547]
[1730096188437,23.902374,173.86,173.82,9.09827547]
[1730096188739,5.7484,173.96,173.86,16.1589]
[1730096188910,9.09827547,173.96,173.9,9.09827547]
[1730096189406,9.09827547,173.96,173.86,16.1589]
[1730096189604,9.09827547,173.92,173.86,16.1589]
[1730096189813,9.09827547,173.92,173.86,25.25717547]
[1730096190218,70.0,173.98,173.86,16.1589]
[1730096190219,9.22376547,173.91,173.86,16.1589]
[1730096191135,0.12549,173.91,173.86,25.25717547]
[1730096192410,0.12549,173.91,173.86,30.4677254]
[1730096192712,14.4343154,173.91,173.86,16.1589]
[1730096192925,14.3088254,173.89,173.83,20.8708254]
[1730096193111,14.3088254,173.84,173.79,6.286]
[1730096193318,43.902374,173.9,173.79,6.286]
[1730096193610,43.902374,173.9,173.79,20.5948254]
[1730096193611,14.3088254,173.85,173.79,20.5948254]
[1730096193814,14.3088254,173.86,173.8,14.3088254]
[1730096194410,14.3088254,173.85,173.79,20.5948254]
[1730096194618,14.3088254,173.84,173.79,6.286]
[1730096194825,0.12549,173.89,173.78,30.2301254]
[1730096194826,14.3088254,173.82,173.78,15.9213]
[1730096195443,14.3088254,173.79,173.75,6.2306]
[1730096195806,14.3088254,173.81,173.75,20.5394254]
[1730096196011,14.3088254,173.82,173.76,14.3088254]
[1730096196328,0.12549,173.81,173.76,14.3088254]
[1730096196740,0.12549,173.81,173.75,6.2306]
[1730096196741,14.4343154,173.81,173.75,20.5394254]
[1730096196907,14.3088254,173.82,173.76,14.3088254]
[1730096197108,28.6868254,173.88,173.76,14.3088254]
[1730096197109,14.3088254,173.83,173.77,14.3088254]
[1730096198338,14.3088254,173.83,173.78,5.7544]
[1730096200437,14.3088254,173.82,173.78,5.7544]
[1730096201645,14.3088254,173.82,173.76,14.3088254]
[1730096202439,14.3088254,173.81,173.75,20.5394254]
[1730096203736,14.3088254,173.81,173.75,11.9859]
[1730096204041,14.3088254,173.82,173.76,14.3088254]
[1730096204641,14.3088254,173.82,173.77,14.3088254]
[1730096205428,14.3088254,173.82,173.78,5.7544]
[1730096208013,14.3088254,173.82,173.76,14.3088254]
[1730096208220,14.3088254,173.81,173.76,14.3088254]
[1730096208941,14.3088254,173.81,173.75,20.5394254]
[1730096209824,14.3088254,173.78,173.75,6.2306]
[1730096210021,14.3088254,173.78,173.75,5.7553]
[1730096210625,14.3088254,173.76,173.75,5.7553]
[1730096210835,14.3088254,173.76,173.72,5.7563]
[1730096211521,14.3088254,173.77,173.72,5.7563]
[1730096212323,14.3088254,173.76,173.72,5.7563]
[1730096212631,9.17311088,173.76,173.72,5.7563]
[1730096218931,9.17311088,173.73,173.72,5.7563]
[1730096220247,9.17311088,173.73,173.69,16.6107]
[1730096220454,9.17311088,173.73,173.7,5.757]
[1730096223335,9.17311088,173.74,173.7,5.757]
[1730096223870,5.754,173.79,173.7,5.757]
[1730096224160,9.17311088,173.77,173.72,9.17311088]
[1730096224464,9.17311088,173.76,173.71,9.17311088]
[1730096225457,9.17311088,173.76,173.72,5.7563]
[1730096225751,9.17311088,173.75,173.72,5.7563]
[1730096226050,9.17311088,173.73,173.7,5.757]
[1730096226258,9.17311088,173.72,173.7,5.757]
[1730096227867,9.17311088,173.74,173.7,5.757]
[1730096228053,9.17311088,173.75,173.7,5.757]
[1730096229370,9.17311088,173.75,173.7,14.93011088]
[1730096229841,0.12549,173.77,173.7,14.93011088]
[1730096230040,9.17311088,173.78,173.72,9.17311088]
[1730096231170,9.17311088,173.78,173.73,5.756]
[1730096235377,0.12549,173.8,173.75,9.17311088]
[1730096235873,9.17311088,173.8,173.75,9.17311088]
[1730096236481,9.17311088,173.8,173.76,5.755]
[1730096236780,9.17311088,173.81,173.76,5.755]
[1730096237277,9.17311088,173.8,173.76,5.755]
[1730096238584,9.17311088,173.8,173.75,9.17311088]
[1730096239673,9.17311088,173.8,173.76,5.755]
[1730096241367,10.0907,173.84,173.76,14.92811088]
[1730096241368,15.8433,173.84,173.76,14.92811088]
[1730096241576,9.17311088,173.81,173.76,14.92811088]
[1730096242380,9.17311088,173.81,173.75,9.17311088]
[1730096243170,0.12549,173.83,173.75,9.17311088]
[1730096243486,0.12549,173.83,173.73,12.2262]
[1730096243487,0.12549,173.86,173.8,9.17311088]
[1730096243786,9.17311088,173.85,173.79,9.17311088]
[1730096244294,9.17311088,173.84,173.79,9.17311088]
[1730096244590,9.17311088,173.84,173.8,5.7537]
[1730096245489,9.17311088,173.81,173.76,15.913]
[1730096245720,9.17311088,173.79,173.76,15.913]
[1730096245894,9.17311088,173.78,173.73,6.4702]
[1730096246186,9.17311088,173.79,173.73,15.64331088]
[1730096248089,9.17311088,173.79,173.74,9.17311088]
[1730096248395,9.17311088,173.79,173.74,14.92881088]
[1730096252092,9.17311088,173.79,173.74,5.7557]
[1730096255196,9.17311088,173.78,173.74,5.7557]
[1730096255889,9.17311088,173.79,173.74,5.7557]